Workbook

Sheet 1st_BTC
R3: The Model interprets the real market trading in figures, graphs and formal functional dependencies accomplishing a maximal isomorphism between them. It is formed in hierarchical structure (pyramid) of five stratification layers. Zero Level is this Worksheet "Intro" and the import data panel.
Y4: 1900-01-02
R7: Steps-to-Follow
P8: 1) Read More Information about the right and roles of use the program by clicking on the respective Button and, if agree, click Continue  Button to go to Worksheet "FORECAST".
P10: 1) Read More Information about the right and roles of use the program by clicking on the respective Button and, if agree, click Continue  Button to go to Worksheet "FORECAST".
P12: 3) On the zoomed 100+ screen you see graphical representation and tables of the 1st (A), 2nd (B)and 3rd (C) level forecastings of each one of the ten currencies on one Sheet BTC—A Short position (20 periods; refresh every 6 min, 2h smoothing average); B Operational position (2h); and C Long (36h) showing the long trend. Gharts B and C are construed by Weighted Moving Average Exponential Smoothing Method with exponential smoothing constant α (0 ≤ α ≤ 1).
P17: Important. By default α = 0.2. When the Sales time series contains substantial random variability, a small value of α is preferred; in contrary, for relatively little random variability, larger values of α have the advantage of quickly adjusting the forecasts when errors occur and therefore allowing the forecast to react faster to changing the trend projection. You must change the value of α manually (after Up/Down Bars hide) by the Spin Button for each currency on every one time position B - prevailing ↘; C -prevailing ↗. The idea is to remember the dealer to se-lect an appropriate α for the trading in interest, thus to reduce the error of the forecasting of this Tail .
I19: PROFESSIONAL-FULL VERSION COMPLEX SOFTWARE PACKAGES
A23: 
A24:  This file is generated for online use only. Any distribution or reproduction of this file in whole or in part, OR the divulgence of any of its contents is expressly prohibited. | P24: This information is applied for: ï fast visual guidance for the direction of change the error with the growth of α from 0.1 to 1; and ï the next higher level in the hierarchical structure of the model—quali- tative assessment of the dealing by the trader.
A25:  It is a professional version in which all editing functions are enabled. You are able to make changes to it. The program is protected from potentially malicious virus attack.
A26:  We provide this basic program for operation without warranty, if you make changes, either expressed or implied. This includes, but not limited to, the implied warranties
A27:  of fitness for a particular purpose. It assumes you are not familiar with the program language that is being applied. Our support team can help explain the functionality of
A28:  every particular procedure and can modify this version to provide added functionality or construct procedures to meet your specific requirements. | L28: Click Continue Ø | P28: 4) Refresh the imported exchange data of the current transactions by clicking on the big currency icon.
P29: 5) Use the small currency icons (i) to move the screen to the selceted surrency; and (ii) to refresh the background collors of the forecasting cells, computing to the trends Up, Down and Equal.
A31: Click Bitcoin to visit the author's website, and then select BTC | G31:  | P31: In case one currency is withdrawn from the exchange temporary or forever, it appears visible indication of this event.
P32: Enjoy
L33: Прочети описанието на работната страница
W34: More info
G35: BitCoins
L37: Read Description of the Worksheet BTC

Sheet BTC
A1: 10 | H1: ❿ | M1: ê ê ê FORECASTING ê ê ê | U1: Прочети  описанието | W1: 0.11 | X1: =TODAY() -> 2014-05-16 | Y1: =AA408 -> 0.10294822 | AC1: 1 | AN1: Register New Account
A2: SXC/BTC | D2: =IF(A31="FALCE","❷","") ->  | E2: =IF(A58="FALCE","❸","") ->  | F2: =IF(A85="FALCE","❹","") ->  | G2: =IF(A112="FALCE","❺","") ->  | H2: =IF(A139="FALCE","❻","") ->  | I2: =IF(A166="FALCE","❼","") ->  | J2: =IF(A193="FALCE","❽","") ->  | K2: =IF(A220="FALCE","❾","") ->  | L2: =IF(A247="FALCE","❿","") ->  | T2: =IF(A3="FALSE","THERE IS CHANGE IN THE IMPORT DATA. ADJUST THE INPUT !","") ->  | U2: SXC/BTC 0.00000393 | V2: SXC/BTC | W2: 3.93e-06 | X2: New Date | Z2: To source | AA2: SexCoin | AC2: 1 | AN2: Login
A3: =IF(V2=A2,"TRUE","FALSE") -> TRUE | B3: time | C3: 1 | D3: 2 | E3: 3 | F3: 4 | G3: 5 | H3: 6 | I3: 7 | J3: 8 | K3: 9 | L3: 10 | M3: 11 | N3: 12 | O3: 13 | P3: 14 | Q3: 15 | R3: 16 | S3: 17 | T3: 18 | U3: 19 | V3: 20 | X3: 20 | Z3: QUALITY ASSESMENT MODELING
A4: -1 | B4: Price Yt | C4: 4e-06 | D4: 4e-06 | E4: 3.86e-06 | F4: 3.86e-06 | G4: 3.86e-06 | H4: 3.86e-06 | I4: 3.86e-06 | J4: 3.95e-06 | K4: 3.95e-06 | L4: 3.94e-06 | M4: 3.94e-06 | N4: 3.94e-06 | O4: 3.93e-06 | P4: 3.93e-06 | Q4: 3.93e-06 | R4: 3.93e-06 | S4: 3.93e-06 | T4: 3.93e-06 | U4: 3.93e-06 | V4: 3.93e-06 | X4: 83 | Y4: 17 | Z4: =$Z$5/365*Z13 -> 0.0008219178082 | AA4: 0.0006575342466 | AN4: May 15th 10:51PM EST
A5: ❶ | B5: F↗↘ | F5: =3/6*E4+2/6*D4+1/6*C4 -> 3.93e-06 | G5: =3/6*F4+2/6*E4+1/6*D4 -> 3.883333333e-06 | H5: =3/6*G4+2/6*F4+1/6*E4 -> 3.86e-06 | I5: =3/6*H4+2/6*G4+1/6*F4 -> 3.86e-06 | J5: =3/6*I4+2/6*H4+1/6*G4 -> 3.86e-06 | K5: =3/6*J4+2/6*I4+1/6*H4 -> 3.905e-06 | L5: 3.935e-06 | M5: 3.945e-06 | N5: 3.941666667e-06 | O5: 3.94e-06 | P5: 3.935e-06 | Q5: 3.931666667e-06 | R5: 3.93e-06 | S5: 3.93e-06 | T5: 3.93e-06 | U5: =3/6*T4+2/6*S4+1/6*R4 -> 3.93e-06 | V5: =3/6*U4+2/6*T4+1/6*S4 -> 3.93e-06 | W5: =3/6*V4+2/6*U4+1/6*T4 -> 3.93e-06 | X5: 20 | Y5: 17 | Z5: 0.06 | AA5: 0.0006575342466 | AN5: USD Markets
B6: -0.11 | C6: 0.02732091716 | D6: 0.00414291 | E6: -0.03951052 | F6: 0.00023003 | G6: -0.15084158 | X6: =IF(X5>$X$3,0,X5) -> 20 | Y6: =IF(Y5>$X$3,0,Y5) -> 17 | AA6: =IF(X8>0,"C","N") -> N
B7: Price Yt | C7: 3.99e-06 | D7: 3.93e-06 | E7: 3.935e-06 | F7: 4.05e-06 | G7: 4.05e-06 | H7: 3.991666667e-06 | I7: 3.991666667e-06 | J7: 3.88e-06 | K7: 3.848333333e-06 | L7: 3.85e-06 | M7: 3.865e-06 | N7: 3.935e-06 | O7: 3.865e-06 | P7: 3.84e-06 | Q7: 3.801666667e-06 | R7: 3.8e-06 | S7: 4e-06 | T7: 3.86e-06 | U7: 3.94e-06 | V7: 3.93e-06 | AN7: BTC/USD 0.00000000
A8: =A9/10 -> 0.2 | B8: F↗↘ | C8: =ABS(C7) -> 3.99e-06 | D8: =ABS(C7) -> 3.99e-06 | E8: =D8+а*(D7-D8) -> 3.978e-06 | F8: 3.9694e-06 | G8: 3.98552e-06 | H8: =G8+а*(G7-G8) -> 3.998416e-06 | I8: 3.997066133e-06 | J8: 3.99598624e-06 | K8: 3.972788992e-06 | L8: 3.94789786e-06 | M8: 3.928318288e-06 | N8: 3.915654631e-06 | O8: 3.919523704e-06 | P8: 3.908618964e-06 | Q8: 3.894895171e-06 | R8: 3.87624947e-06 | S8: 3.860999576e-06 | T8: 3.888799661e-06 | U8: =T8+а*(T7-T8) -> 3.883039729e-06 | V8: =U8+а*(U7-U8) -> 3.894431783e-06 | W8: 3.901545426e-06 | X8: =NPV(AA4,C6:V6)+B6 -> -0.2681094654 | AA8: =IRR(B6:V6,AA4) ->  | AN8: DOGE/USD 0.00000000
A9: 2 | B9: CashFlow | C9: =C498 -> 0.02732091716 | D9: =D498 -> 0.03146382716 | E9: -0.008046692836 | F9: -0.007816662836 | G9: -0.1586582428 | H9: -0.1589831328 | X9: =IF(B6=0,"",AA8*365/Z13) ->  | AN9: FTC/USD 0.00000000
B10: Price Yt | C10: 4.426087697e-06 | D10: 4.420105148e-06 | E10: 4.422448079e-06 | F10: 4.419612587e-06 | G10: 4.3511314e-06 | H10: 4.3511314e-06 | I10: 4.300324096e-06 | J10: 4.282028693e-06 | K10: 4.267622954e-06 | L10: 4.256290517e-06 | M10: 4.2137498e-06 | N10: 4.210920289e-06 | O10: 4.208736231e-06 | P10: 4.206988985e-06 | Q10: 4.145747598e-06 | R10: 4.114348278e-06 | S10: 4.089151962e-06 | T10: 4.0201904e-06 | U10: 4.02615232e-06 | V10: 3.924175846e-06 | AA10: =Y1/W1/100 -> 0.009358929091 | AN10: LTC/USD 0.00000000
A11: =A12/10 -> 0.2 | B11: F↗↘ | C11: =ABS(C10) -> 4.426087697e-06 | D11: =ABS(C10) -> 4.426087697e-06 | E11: =D11+а13*(D10-D11) -> 4.424891188e-06 | F11: 4.424402566e-06 | G11: 4.42344457e-06 | H11: 4.408981936e-06 | I11: 4.397411829e-06 | J11: 4.377994282e-06 | K11: 4.358801165e-06 | L11: 4.340565522e-06 | M11: 4.323710521e-06 | N11: 4.301718377e-06 | O11: 4.28355876e-06 | P11: 4.268594254e-06 | Q11: =P11+а13*(P10-P11) -> 4.2562732e-06 | R11: 4.23416808e-06 | S11: 4.210204119e-06 | T11: =S11+а13*(S10-S11) -> 4.185993688e-06 | U11: 4.15283303e-06 | V11: 4.127496888e-06 | W11: 4.08683268e-06 | X11: =NPV(AB14,C9:V9)+B9 ->  | AE11: Click here to START
A12: 2 | B12: 0.11 | C12: 0.11682192 | D12: 0.1137794 | E12: 0.08136162 | F12: 0.07744949 | G12: 0.10294822 | X12: =IF(B9=0,"",AA16*365/Z19) -> 26.28865416 | AA12: =(IF(AA10>1," C"," L")) -> L
I13: B | Q13: C | W13: Go to: | Y13: 2014-05-11 | Z13: 5
A14: α# | X14: Go to: | AA14: =IF(X11=0,"",IF(X11>0,"C","N")) ->  | AB14: =$Z$5/Z19 -> 0.0075 | AN14: BTC Markets
B16: SXC | AA16: =IRR(B9:V9) -> 0.5761896801
W18: SXC | AN18: 42/BTC 23.50000000
Y19: 2014-04-18 | Z19: 8 | AA19: =IF(#REF!=0,"",IF(#REF!>0,"C","N")) ->  | AN19: AC/BTC 0.00000525
AN20: ALF/BTC 0.00000131
A21: SexCoin | AN21: AMC/BTC 0.00000220
AN22: ANC/BTC 0.00146412
AN23: ARG/BTC 0.00003012
AN24: AUR/BTC 0.00087718
Y25: 2014-04-18 | AN25: BC/BTC 0.00018801
AN26: BCX/BTC 0.00000474
AN27: BEN/BTC 0.00000639
AN28: BET/BTC 0.00000629
Z29: To source | AA29: AuroraCoin | AN29: BQC/BTC 0.00000711
A30: AUR/BTC | C30: =IF(A4="FALCE","❶","") ->  | D30: =IF(A4="FALCE","❶","") ->  | E30: =IF(A58="FALCE","❸","") ->  | F30: =IF(A85="FALCE","❹","") ->  | G30: =IF(A112="FALCE","❺","") ->  | H30: =IF(A139="FALCE","❻","") ->  | I30: =IF(A166="FALCE","❼","") ->  | J30: =IF(A193="FALCE","❽","") ->  | K30: =IF(A220="FALCE","❾","") ->  | L30: =IF(A247="FALCE","❿","") ->  | M30: =IF(A247="FALCE","❿","") ->  | T30: =IF(A31="FALSE","THERE IS CHANGE IN THE IMPORT DATA. ADJUST THE INPUT !","") ->  | U30: AUR/BTC 0.00087718 | V30: AUR/BTC | W30: 0.00087718 | AN30: BTB/BTC 0.02419843
A31: =IF(V30=A30,"TRUE","FALSE") -> TRUE | B31: Price Yt | C31: 0.00089613 | D31: 0.00089613 | E31: 0.00088791 | F31: 0.00088791 | G31: 0.00088791 | H31: 0.00088791 | I31: 0.00088791 | J31: 0.0008879 | K31: 0.0008879 | L31: 0.00088785 | M31: 0.00088785 | N31: 0.00088785 | O31: 0.00088785 | P31: 0.00088785 | Q31: 0.00087684 | R31: 0.00087684 | S31: 0.00087684 | T31: 0.00089605 | U31: 0.00089605 | V31: 0.00087718 | X31: =$X$3 -> 1900-01-20 | Y31: ↙ Number of periods for A and B cycles | AN31: BTE/BTC 0.00002254
A32: ❷ | B32: F↗↘ | F32: =3/6*E31+2/6*D31+1/6*C31 -> 0.00089202 | G32: 0.00088928 | H32: 0.00088791 | I32: 0.00088791 | J32: 0.00088791 | K32: 0.000887905 | L32: 0.0008879016667 | M32: 0.000887875 | N32: 0.0008878583333 | O32: 0.00088785 | P32: 0.00088785 | Q32: 0.00088785 | R32: 0.000882345 | S32: 0.000878675 | T32: 0.00087684 | U32: 0.000886445 | V32: =3/6*U31+2/6*T31+1/6*S31 -> 0.0008928483333 | W32: =3/6*V31+2/6*U31+1/6*T31 -> 0.000886615 | X32: 19 | Y32: 16 | AN32: BTG/BTC 0.00210001
B33: -0.01 | C33: -0.00398985 | D33: -0.00059161 | E33: 0.00048748 | F33: -0.00444189 | G33: 0.00232066 | H33: 0.00402182 | I33: 0.00872377 | J33: 0.00478998 | X33: =IF(X32>$X$3,0,X32) -> 19 | Y33: =IF(Y32>$X$3,0,Y32) -> 16 | AA33: =IF(X34=0,"",IF(X34>0,"C","N")) -> C | AB33: =$Z$5/Z40 -> 0.0075 | AN33: BUK/BTC 0.00010460
B34: Price Yt | C34: 0.0009118 | D34: 0.0009118 | E34: 0.000912075 | F34: 0.00091472 | G34: 0.0009021516667 | H34: 0.0009013033333 | I34: 0.0009000583333 | J34: 0.0009 | K34: 0.0008905133333 | L34: 0.0008927916667 | M34: 0.00089895 | N34: 0.000890155 | O34: 0.0008821883333 | P34: 0.00088785 | Q34: 0.0008879116667 | R34: 0.0008878566667 | S34: 0.00089475 | T34: 0.00088791 | U34: 0.00088785 | V34: 0.00087684 | X34: =NPV(AB33,C33:V33)+B33 -> 0.0004949026247 | AN34: CACH/BTC 0.00141118
A35: =A36/10 -> 0.2 | B35: F↗↘ | C35: =ABS(C34) -> 0.0009118 | D35: =ABS(C34) -> 0.0009118 | E35: =D35+а2*(D34-D35) -> 0.0009118 | F35: 0.000911855 | G35: 0.000912428 | H35: 0.0009103727333 | I35: 0.0009085588533 | J35: 0.0009068587493 | K35: 0.0009054869995 | L35: 0.0009024922662 | M35: 0.0009005521463 | N35: 0.0009002317171 | O35: 0.0008982163736 | P35: 0.0008950107656 | Q35: 0.0008935786125 | R35: 0.0008924452233 | S35: 0.000891527512 | T35: 0.0008921720096 | U35: 0.0008913196077 | V35: 0.0008906256861 | W35: 0.0008878685489 | X35: =IF(B33=0,0,AA35*365/$Z$40) -> 0.55840022 | AA35: =IRR(B33:V33) -> 0.01223890893 | AN35: CAP/BTC 0.00005737
A36: 2 | B36: -0.11 | C36: 0.02732091716 | D36: 0.00414291 | E36: -0.03951052 | F36: 0.00023003 | G36: -0.15084158 | X36: =NPV($Z$5,C36:V36)+B36 -> -0.2262475673 | AN36: CASH/BTC 0.00001127
B37: Price Yt | C37: 0.0009586687563 | D37: 0.0009380489921 | E37: 0.000932914928 | F37: 0.0009317375385 | G37: 0.0009312416118 | H37: 0.0009316782878 | I37: 0.000935182901 | J37: 0.000935182901 | K37: 0.00093332259 | L37: 0.0009326624563 | M37: 0.0009321416672 | N37: 0.0009229596411 | O37: 0.0009229596411 | P37: 0.0009242396449 | Q37: 0.0009331916198 | R37: 0.0009316309779 | S37: 0.0009276081594 | T37: 0.0009245395683 | U37: 0.0009189709504 | V37: 0.0009156070937 | X37: =IF(B36=0,0,AA42*365/$Z$40) ->  | AN37: CAT/BTC 0.00004820
A38: =A39/10 -> 0.2 | B38: F↗↘ | C38: =ABS(C37) -> 0.0009586687563 | D38: =ABS(C37) -> 0.0009586687563 | E38: =D38+а23*(D37-D38) -> 0.0009545448035 | F38: 0.0009502188284 | G38: 0.0009465225704 | H38: 0.0009434663787 | I38: 0.0009411087605 | J38: 0.0009399235886 | K38: 0.0009389754511 | L38: 0.0009378448789 | M38: 0.0009368083943 | N38: 0.0009358750489 | O38: 0.0009332919673 | P38: 0.0009312255021 | Q38: 0.0009298283306 | R38: 0.0009305009885 | S38: 0.0009307269864 | T38: =S38+а23*(S37-S38) -> 0.000930103221 | U38: 0.0009289904904 | V38: 0.0009269865824 | W38: =V38+а23*(V37-V38) -> 0.0009247106847 | AN38: CGB/BTC 0.00061487
A39: 2 | AN39: CINNI/BTC 0.00010090
B40: A | I40: B | Q40: C | W40: Go to: | X40: ↙ Refresh | Y40: 2014-05-11 | Z40: 8 | AA40: 1900-01-12 | AN40: CLR/BTC 0.00010300
A41: α# | X41: Go to: | AN41: CMC/BTC 0.00001769
AA42: =IRR(B36:V36) ->  | AN42: CNC/BTC 0.00000290
B43: AUR | AN43: COMM/BTC 0.00000057
AN44: CRC/BTC 0.00002366
AN45: CSC/BTC 0.00000209
Y46: 2014-05-11 | Z46: 5 | AN46: DEM/BTC 0.00001076
W47: AUR | AN47: DGB/BTC 0.00000050
A48: AuroraCoin | AN48: DGC/BTC 0.00005402
AN49: DIME/BTC 0.00000001
AN50: DMD/BTC 0.00050103
AN51: DOGE/BTC 0.00000101
AN52: DRK/BTC 0.01408397
K53: $ | AN53: DVC/BTC 0.00000016
K54: α | AN54: EAC/BTC 0.00000005
AN55: ELC/BTC 0.00025023
Z56: To source | AA56: DogeCoin | AN56: EMC2/BTC 0.00000245
A57: DOGE/BTC | C57: =IF(A4="FALCE","❶","") ->  | D57: =IF(A31="FALCE","❷","") ->  | E57: =IF(A31="FALCE","❷","") ->  | F57: =IF(A85="FALCE","❹","") ->  | G57: =IF(A112="FALCE","❺","") ->  | H57: =IF(A139="FALCE","❻","") ->  | I57: =IF(A166="FALCE","❼","") ->  | J57: =IF(A193="FALCE","❽","") ->  | K57: =IF(A220="FALCE","❾","") ->  | L57: =IF(A247="FALCE","❿","") ->  | M57: =IF(A247="FALCE","❿","") ->  | T57: =IF(A58="FALSE","THERE IS CHANGE IN THE IMPORT DATA. ADJUST THE INPUT !","") ->  | U57: DOGE/BTC 0.00000101 | V57: DOGE/BTC | W57: 1.01e-06 | AN57: EMD/BTC 0.00000350
A58: =IF(V57=A57,"TRUE","FALSE") -> TRUE | B58: Price Yt | C58: 1.01e-06 | D58: 1.01e-06 | E58: 1.01e-06 | F58: 1.01e-06 | G58: 1.01e-06 | H58: 1.01e-06 | I58: 1.01e-06 | J58: 1e-06 | K58: 1e-06 | L58: 1e-06 | M58: 1e-06 | N58: 1e-06 | O58: 1.01e-06 | P58: 1.01e-06 | Q58: 1.01e-06 | R58: 1.01e-06 | S58: 1.01e-06 | T58: 1e-06 | U58: 1e-06 | V58: 1.01e-06 | X58: =$X$3 -> 1900-01-20 | Y58: ↙ Number of periods for A and B cycles | AN58: EXE/BTC 0.00005990
A59: ❸ | B59: F↗↘ | F59: =3/6*E58+2/6*D58+1/6*C58 -> 1.01e-06 | G59: 1.01e-06 | H59: 1.01e-06 | I59: 1.01e-06 | J59: 1.01e-06 | K59: 1.005e-06 | L59: 1.001666667e-06 | M59: 1e-06 | N59: 1e-06 | O59: 1e-06 | P59: 1.005e-06 | Q59: 1.008333333e-06 | R59: 1.01e-06 | S59: 1.01e-06 | T59: 1.01e-06 | U59: 1.005e-06 | V59: 1.001666667e-06 | W59: 1.005e-06 | X59: 19 | Y59: 16 | AN59: EZC/BTC 0.00000224
B60: -0.01 | C60: -0.00398985 | D60: -0.00059161 | E60: 0.00048748 | F60: -0.00444189 | G60: 0.00232066 | H60: 0.00402182 | I60: 0.00872377 | J60: 0.00478998 | X60: =IF(X59>$X$3,0,X59) -> 19 | Y60: =IF(Y59>$X$3,0,Y59) -> 16 | AA60: =IF(X61=0,"",IF(X61>0,"C","N")) -> N | AN60: FFC/BTC 0.00000025
B61: Price Yt | C61: 1.02e-06 | D61: 1.025e-06 | E61: 1.021666667e-06 | F61: 1.02e-06 | G61: 1.016666667e-06 | H61: 9.9e-07 | I61: 9.983333333e-07 | J61: 1.008333333e-06 | K61: 1.001666667e-06 | L61: 1.008333333e-06 | M61: 1.01e-06 | N61: 1.01e-06 | O61: 1.01e-06 | P61: 1.01e-06 | Q61: 1e-06 | R61: 1.008333333e-06 | S61: 1.008333333e-06 | T61: 1.01e-06 | U61: 1e-06 | V61: 1.01e-06 | X61: =NPV($Z$5,C60:L60)+B60 -> -0.004023180983 | AN61: FLAP/BTC 0.00000001
A62: =A63/10 -> 0.2 | B62: F↗↘ | C62: =ABS(C61) -> 1.02e-06 | D62: =ABS(C61) -> 1.02e-06 | E62: =D62+а3*(D61-D62) -> 1.021e-06 | F62: 1.021133333e-06 | G62: 1.020906667e-06 | H62: 1.020058667e-06 | I62: 1.014046933e-06 | J62: 1.010904213e-06 | K62: 1.010390037e-06 | L62: 1.008645363e-06 | M62: 1.008582957e-06 | N62: 1.008866366e-06 | O62: 1.009093093e-06 | P62: 1.009274474e-06 | Q62: 1.009419579e-06 | R62: 1.007535663e-06 | S62: 1.007695197e-06 | T62: 1.007822825e-06 | U62: 1.00825826e-06 | V62: 1.006606608e-06 | W62: =V62+а3*(V61-V62) -> 1.007285286e-06 | X62: =IF(B60=0,0,AA62*365/$Z$13) -> 0.893440352 | AA62: =IRR(B60:V60) -> 0.01223890893 | AN62: FLT/BTC 0.00000605
A63: 1900-01-02 | D63: -0.00059161 | E63: 00:00:42.118 | F63: -0.00444189 | G63: 00:03:20.505 | H63: 00:05:47.485 | I63: 00:12:33.734 | X63: =NPV($Z$5,C90:L90)+B90 -> 0.005976819017 | AN63: FRC/BTC 0.00001301
A64: 1900-01-02 | B64: Price Yt | C64: 1.03046212e-06 | D64: 1.03046212e-06 | E64: 1.032526177e-06 | F64: 1.032526177e-06 | G64: 1.028132046e-06 | H64: 1.02744799e-06 | I64: 1.025804669e-06 | J64: 1.028791512e-06 | K64: 1.030834414e-06 | L64: 1.030834414e-06 | M64: 1.029000865e-06 | N64: 1.02491293e-06 | O64: 1.02398799e-06 | P64: 1.023151962e-06 | Q64: 1.02256e-06 | R64: 1.024048e-06 | S64: 1.02419072e-06 | T64: 1.023815394e-06 | U64: 1.023052315e-06 | V64: 1.021775186e-06 | X64: =IF(B63=0,0,AA69*365/$Z$13) -> 0 | AN64: FRK/BTC 0.00040979
A65: =A66/10 -> 0.2 | B65: F↗↘ | C65: =ABS(C64) -> 1.03046212e-06 | D65: =ABS(C64) -> 1.03046212e-06 | E65: =D65+а33*(D64-D65) -> 1.03046212e-06 | F65: 1.030874931e-06 | G65: 1.031205181e-06 | H65: 1.030590554e-06 | I65: 1.029962041e-06 | J65: 1.029130567e-06 | K65: 1.029062756e-06 | L65: 1.029417087e-06 | M65: 1.029700553e-06 | N65: 1.029560615e-06 | O65: 1.028631078e-06 | P65: 1.027702461e-06 | Q65: 1.026792361e-06 | R65: 1.025945889e-06 | S65: 1.025566311e-06 | T65: 1.025291193e-06 | U65: 1.024996033e-06 | V65: 1.024607289e-06 | W65: =V65+а33*(V64-V65) -> 1.024040869e-06 | AN65: FST/BTC 0.00000253
A66: 1900-01-02 | AN66: FTC/BTC 0.00017829
A67: 1900-01-02 | B67: A | I67: B | Q67: C | W67: Go to: | X67: ↙ Refresh | Y67: 2014-03-30 | AA67: =IF(X63=0,"",IF(X63>0,"C","N")) -> C | AN67: GDC/BTC 0.00000030
A68: α# | X68: Go to: | AN68: GLC/BTC 0.00000151
AA69: =IRR(B63:V63) -> 0.5969625316 | AN69: GLD/BTC 0.00001947
B70: DOGE | AN70: GLX/BTC 0.00000090
AN71: HBN/BTC 0.00031288
AN72: HVC/BTC 0.00000636
AN73: IFC/BTC 0.00000005
AN74: IXC/BTC 0.00012504
AN75: JKC/BTC 0.00000495
A76: DogeCoin | W76: DOGE | AN76: KDC/BTC 0.00001900
AN77: KGC/BTC 0.00000129
AN78: LEAF/BTC 0.00000002
AN79: LGD/BTC 0.00018499
AN80: LK7/BTC 0.00000050
AN81: LKY/BTC 0.00000559
AN82: LOT/BTC 0.00000002
Z83: To source | AA83: NetCoin | AN83: LTB/BTC 0.00044706
A84: NET/BTC | C84: =IF(A4="FALCE","❶","") ->  | D84: =IF(A31="FALCE","❷","") ->  | E84: =IF(A58="FALCE","❸","") ->  | F84: =IF(A85="FALCE","❸","") ->  | G84: =IF(A112="FALCE","❺","") ->  | H84: =IF(A139="FALCE","❻","") ->  | I84: =IF(A166="FALCE","❼","") ->  | J84: =IF(A193="FALCE","❽","") ->  | K84: =IF(A220="FALCE","❾","") ->  | L84: =IF(A247="FALCE","❿","") ->  | M84: =IF(A247="FALCE","❿","") ->  | T84: =IF(A85="FALSE","THERE IS CHANGE IN THE IMPORT DATA. ADJUST THE INPUT !","") ->  | U84: NET/BTC 0.00000241 | V84: NET/BTC | W84: 2.41e-06 | AN84: LTC/BTC 0.02359994
A85: =IF(V84=A84,"TRUE","FALSE") -> TRUE | B85: Price Yt | C85: 2.63e-06 | D85: 2.63e-06 | E85: 2.63e-06 | F85: 2.63e-06 | G85: 2.62e-06 | H85: 2.62e-06 | I85: 2.62e-06 | J85: 2.62e-06 | K85: 2.62e-06 | L85: 2.62e-06 | M85: 2.62e-06 | N85: 2.62e-06 | O85: 2.61e-06 | P85: 2.61e-06 | Q85: 2.61e-06 | R85: 2.61e-06 | S85: 2.61e-06 | T85: 2.55e-06 | U85: 2.55e-06 | V85: 2.41e-06 | X85: =$X$3 -> 1900-01-20 | Y85: ↙ Number of periods for A and B cycles | AN85: LYC/BTC 0.00000020
A86: ❹ | B86: F↗↘ | F86: =3/6*E85+2/6*D85+1/6*C85 -> 2.63e-06 | G86: =3/6*F85+2/6*E85+1/6*D85 -> 2.63e-06 | H86: 2.625e-06 | I86: 2.621666667e-06 | J86: 2.62e-06 | K86: 2.62e-06 | L86: 2.62e-06 | M86: 2.62e-06 | N86: 2.62e-06 | O86: 2.62e-06 | P86: 2.615e-06 | Q86: 2.611666667e-06 | R86: 2.61e-06 | S86: 2.61e-06 | T86: 2.61e-06 | U86: 2.58e-06 | V86: 2.56e-06 | W86: =3/6*V85+2/6*U85+1/6*T85 -> 2.48e-06 | X86: 19 | Y86: 16 | AN86: MAX/BTC 0.00010700
C87: -0.00398985 | D87: -0.00059161 | E87: -0.00059161 | F87: -0.00059161 | G87: -0.00059161 | H87: -0.00059161 | I87: -0.00059161 | J87: -0.00059161 | X87: =IF(X86>$X$3,0,X86) -> 19 | Y87: =IF(Y86>$X$3,0,Y86) -> 16 | AA87: =IF(X88=0,"",IF(X88>0,"C","N")) -> N | AN87: MEC/BTC 0.00020432
B88: Price Yt | C88: 2.77e-06 | D88: 2.77e-06 | E88: 2.77e-06 | F88: 2.83e-06 | G88: 2.728333333e-06 | H88: 2.653333333e-06 | I88: 2.58e-06 | J88: 2.596666667e-06 | K88: 2.513333333e-06 | L88: 2.576666667e-06 | M88: 2.59e-06 | N88: 2.605e-06 | O88: 2.658333333e-06 | P88: 2.62e-06 | Q88: 2.646666667e-06 | R88: 2.61e-06 | S88: 2.628333333e-06 | T88: 2.62e-06 | U88: 2.62e-06 | V88: 2.61e-06 | X88: =NPV($Z$5,C87:L87)+B87 -> -0.006879662909 | AN88: MEOW/BTC 0.00000002
A89: =A90/10 -> 0.2 | B89: F↗↘ | C89: =ABS(C88) -> 2.77e-06 | D89: =ABS(C88) -> 2.77e-06 | E89: =D89+а4*(D88-D89) -> 2.77e-06 | F89: 2.77e-06 | G89: 2.782e-06 | H89: =G89+а4*(G88-G89) -> 2.771266667e-06 | I89: 2.74768e-06 | J89: 2.714144e-06 | K89: 2.690648533e-06 | L89: 2.655185493e-06 | M89: 2.639481728e-06 | N89: 2.629585382e-06 | O89: 2.624668306e-06 | P89: 2.631401311e-06 | Q89: 2.629121049e-06 | R89: 2.632630173e-06 | S89: 2.628104138e-06 | T89: 2.628149977e-06 | U89: 2.626519982e-06 | V89: 2.625215985e-06 | W89: 2.622172788e-06 | X89: =IF(B87=0,0,AA89*365/$Z$13) -> 0 | AA89: =IRR(B87:V87) ->  | AN89: MINT/BTC 0.00000010
A90: 1900-01-02 | C90: -0.00398985 | D90: -0.00059161 | E90: 00:00:42.118 | F90: -0.00444189 | G90: 00:03:20.505 | H90: 00:05:47.485 | I90: 00:12:33.734 | J90: 00:06:53.854 | X90: =NPV($Z$5,C90:L90)+B90 -> 0.005976819017 | AN90: MN1/BTC 0.01372043
A91: 2 | B91: Price Yt | C91: 2.643363748e-06 | D91: 2.635690999e-06 | E91: 2.566903132e-06 | F91: 2.573796811e-06 | G91: 2.571043631e-06 | H91: 2.571075289e-06 | I91: 2.580937093e-06 | J91: 2.529953069e-06 | K91: 2.529953069e-06 | L91: 2.495903297e-06 | M91: 2.481492054e-06 | N91: 2.451251289e-06 | O91: 2.470689302e-06 | P91: 2.620205565e-06 | Q91: 2.609254658e-06 | R91: 2.338014409e-06 | S91: 2.422720576e-06 | T91: 2.49188823e-06 | U91: 2.6394592e-06 | V91: 2.657234027e-06 | X91: =IF(B90=0,0,AA96*365/$Z$13) -> 0 | AN91: MN2/BTC 0.13839990
A92: =A93/10 -> 0.2 | B92: F↗↘ | C92: =ABS(C91) -> 2.643363748e-06 | D92: =ABS(C91) -> 2.643363748e-06 | E92: =D92+а43*(D91-D92) -> 2.641829198e-06 | F92: 2.626843985e-06 | G92: 2.61623455e-06 | H92: =G92+а43*(G91-G92) -> 2.607196366e-06 | I92: 2.599972151e-06 | J92: 2.596165139e-06 | K92: 2.582922725e-06 | L92: 2.572328794e-06 | M92: 2.557043695e-06 | N92: 2.541933366e-06 | O92: 2.523796951e-06 | P92: 2.513175421e-06 | Q92: 2.53458145e-06 | R92: 2.549516091e-06 | S92: 2.507215755e-06 | T92: 2.490316719e-06 | U92: 2.490631021e-06 | V92: 2.520396657e-06 | W92: 2.547764131e-06 | AN92: MNC/BTC 0.00018915
A93: 1900-01-02 | AN93: MRY/BTC 0.00000550
A94: 2 | B94: A | I94: B | Q94: C | W94: Go to: | X94: ↙ Refresh | Y94: 2014-03-30 | AA94: =IF(X90=0,"",IF(X90>0,"C","N")) -> C | AN94: MYR/BTC 0.00000491
A95: α# | X95: Go to: | AN95: MZC/BTC 0.00000046
AA96: =IRR(B90:V90) -> 0.2108441003 | AN96: NAN/BTC 0.00000095
B97: NET | AN97: NBL/BTC 0.00004077
AN98: NEC/BTC 0.00001001
AN99: NET/BTC 0.00000241
AN100: NMC/BTC 0.00459199
AN101: NRB/BTC 0.00001363
AN102: NVC/BTC 0.00571815
A103: NetCoin | AN103: NXT/BTC 0.00008035
AN104: NYAN/BTC 0.00000055
AN105: ORB/BTC 0.00004134
W106: NET | AN106: OSC/BTC 0.00000490
AN107: PHS/BTC 0.00016960
AN108: Points/BTC 0.00120130
AN109: POT/BTC 0.00000655
Z110: To source | AA110: EarthCoin | AN110: PPC/BTC 0.00474200
A111: EAC/BTC | C111: =IF(A4="FALCE","❶","") ->  | D111: =IF(A31="FALCE","❷","") ->  | E111: =IF(A58="FALCE","❸","") ->  | F111: =IF(A85="FALCE","❹","") ->  | G111: =IF(A85="FALCE","❹","") ->  | H111: =IF(A139="FALCE","❻","") ->  | I111: =IF(A166="FALCE","❼","") ->  | J111: =IF(A193="FALCE","❽","") ->  | K111: =IF(A220="FALCE","❾","") ->  | L111: =IF(A247="FALCE","❿","") ->  | M111: =IF(A247="FALCE","❿","") ->  | T111: =IF(A112="FALSE","THERE IS CHANGE IN THE IMPORT DATA. ADJUST THE INPUT !","") ->  | U111: EAC/BTC 0.00000005 | V111: EAC/BTC | W111: 5e-08 | AN111: PTS/BTC 0.00817701
A112: =IF(V111=A111,"TRUE","FALSE") -> TRUE | B112: Price Yt | C112: 5e-08 | D112: 5e-08 | E112: 5e-08 | F112: 5e-08 | G112: 5e-08 | H112: 5e-08 | I112: 5e-08 | J112: 5e-08 | K112: 5e-08 | L112: 5e-08 | M112: 5e-08 | N112: 5e-08 | O112: 5e-08 | P112: 5e-08 | Q112: 5e-08 | R112: 5e-08 | S112: 5e-08 | T112: 5e-08 | U112: 5e-08 | V112: 5e-08 | X112: =$X$3 -> 1900-01-20 | Y112: ↙ Number of periods for A and B cycles | AN112: PXC/BTC 0.00000259
A113: ❺ | B113: F↗↘ | F113: =3/6*E112+2/6*D112+1/6*C112 -> 5e-08 | G113: =3/6*F112+2/6*E112+1/6*D112 -> 5e-08 | H113: 5e-08 | I113: 5e-08 | J113: 5e-08 | K113: 5e-08 | L113: 5e-08 | M113: 5e-08 | N113: =3/6*M112+2/6*L112+1/6*K112 -> 5e-08 | O113: 5e-08 | P113: 5e-08 | Q113: 5e-08 | R113: 5e-08 | S113: 5e-08 | T113: 5e-08 | U113: 5e-08 | V113: 5e-08 | W113: 5e-08 | X113: 19 | Y113: 16 | AN113: PYC/BTC 0.00000839
X114: =IF(X113>$X$3,0,X113) -> 19 | Y114: =IF(Y113>$X$3,0,Y113) -> 16 | AA114: =IF(X115=0,"",IF(X115>0,"C","N")) ->  | AN114: QRK/BTC 0.00003767
B115: Price Yt | C115: 5e-08 | D115: 5e-08 | E115: 5e-08 | F115: 5e-08 | G115: 5e-08 | H115: 5e-08 | I115: 5e-08 | J115: 5e-08 | K115: 5e-08 | L115: 5e-08 | M115: 5e-08 | N115: 5e-08 | O115: 5e-08 | P115: 5e-08 | Q115: 5e-08 | R115: 5e-08 | S115: 5e-08 | T115: 5e-08 | U115: 5e-08 | V115: 5e-08 | X115: =NPV($Z$5,C114:L114)+B114 -> 0 | AN115: RDD/BTC 0.00000007
A116: =A117/10 -> 0.2 | B116: F↗↘ | C116: =ABS(C115) -> 5e-08 | D116: =ABS(C115) -> 5e-08 | E116: =D116+а5*(D115-D116) -> 5e-08 | F116: 5e-08 | G116: 5e-08 | H116: 5e-08 | I116: 5e-08 | J116: =I116+а5*(I115-I116) -> 5e-08 | K116: 5e-08 | L116: 5e-08 | M116: 5e-08 | N116: 5e-08 | O116: 5e-08 | P116: 5e-08 | Q116: 5e-08 | R116: 5e-08 | S116: 5e-08 | T116: 5e-08 | U116: 5e-08 | V116: 5e-08 | W116: 5e-08 | X116: =IF(B114=0,0,AA116*365/$Z$13) -> 0 | AA116: =IRR(B114:V114) ->  | AN116: RPC/BTC 0.00111113
A117: 1900-01-02 | X117: =NPV($Z$5,C117:L117)+B117 -> 0 | AN117: RYC/BTC 0.00000203
A118: 2 | B118: Price Yt | C118: 5.971852502e-08 | D118: 5.981985601e-08 | E118: 5.985588481e-08 | F118: 5.550592679e-08 | G118: 5.550592679e-08 | H118: 5.712379315e-08 | I118: 5.769903452e-08 | J118: 5.815922761e-08 | K118: 5.83633916e-08 | L118: 5.885649383e-08 | M118: 5.574501749e-08 | N118: 5.574501749e-08 | O118: 5.459601399e-08 | P118: 5.120481749e-08 | Q118: 5e-08 | R118: 5e-08 | S118: 5e-08 | T118: 5e-08 | U118: 5e-08 | V118: 5e-08 | X118: =IF(B117=0,0,AA123*365/$Z$13) -> 0 | AN118: SAT/BTC 0.00000004
A119: =A120/10 -> 0.2 | B119: F↗↘ | C119: =ABS(C118) -> 5.971852502e-08 | D119: =ABS(C118) -> 5.971852502e-08 | E119: =D119+а53*(D118-D119) -> 5.973879122e-08 | F119: 5.976220994e-08 | G119: 5.891095331e-08 | H119: 5.822994801e-08 | I119: 5.800871703e-08 | J119: 5.794678053e-08 | K119: 5.798926995e-08 | L119: 5.806409428e-08 | M119: 5.822257419e-08 | N119: 5.772706285e-08 | O119: 5.733065378e-08 | P119: 5.678372582e-08 | Q119: 5.566794415e-08 | R119: 5.453435532e-08 | S119: 5.362748426e-08 | T119: 5.290198741e-08 | U119: 5.232158993e-08 | V119: 5.185727194e-08 | W119: 5.148581755e-08 | AN119: SBC/BTC 0.00000795
A120: 1900-01-02 | AN120: SMC/BTC 0.00000174
A121: 2 | B121: A | I121: B | Q121: C | W121: Go to: | X121: ↙ Refresh | AN121: SPA/BTC 0.00000775
A122: α# | X122: Go to: | AN122: SPT/BTC 0.00000420
AA123: =IRR(B117:V117) ->  | AN123: SRC/BTC 0.00025441
B124: EAC | AN124: STR/BTC 0.00000039
AN125: SXC/BTC 0.00000393
AN126: TAG/BTC 0.00026983
A127: 1900-01-05 | AN127: TAK/BTC 0.00000012
AN128: TEK/BTC 0.00049764
AN129: TGC/BTC 0.00000102
A130: EarthCoin | AN130: TRC/BTC 0.00016776
AN131: UNB/BTC 0.00000475
AN132: UNO/BTC 0.00407336
AN133: USDe/BTC 0.00000156
AN134: UTC/BTC 0.00006900
W135: EAC | AN135: VTC/BTC 0.00282004
AN136: WC/BTC 0.00000381
Z137: To source | AA137: FastCoin | AN137: WDC/BTC 0.00006160
A138: FST/BTC | C138: =IF(A4="FALCE","❶","") ->  | D138: =IF(A31="FALCE","❷","") ->  | E138: =IF(A58="FALCE","❸","") ->  | F138: =IF(A85="FALCE","❹","") ->  | G138: =IF(A112="FALCE","❺","") ->  | H138: =IF(A112="FALCE","❺","") ->  | I138: =IF(A166="FALCE","❼","") ->  | J138: =IF(A193="FALCE","❽","") ->  | K138: =IF(A220="FALCE","❾","") ->  | L138: =IF(A247="FALCE","❿","") ->  | M138: =IF(A247="FALCE","❿","") ->  | T138: =IF(A139="FALSE","THERE IS CHANGE IN THE IMPORT DATA. ADJUST THE INPUT !","") ->  | U138: FST/BTC 0.00000253 | V138: FST/BTC | W138: 2.53e-06 | AN138: XJO/BTC 0.00000352
A139: =IF(V138=A138,"TRUE","FALSE") -> TRUE | B139: Price Yt | C139: 2.45e-06 | D139: 2.45e-06 | E139: 2.45e-06 | F139: 2.45e-06 | G139: 2.49e-06 | H139: 2.49e-06 | I139: 2.49e-06 | J139: 2.6e-06 | K139: 2.6e-06 | L139: 2.6e-06 | M139: 2.6e-06 | N139: 2.6e-06 | O139: 2.54e-06 | P139: 2.54e-06 | Q139: 2.52e-06 | R139: 2.52e-06 | S139: 2.52e-06 | T139: 2.59e-06 | U139: 2.59e-06 | V139: 2.53e-06 | X139: =$X$3 -> 1900-01-20 | Y139: ↙ Number of periods for A and B cycles | AN139: XPM/BTC 0.00136099
A140: ❻ | B140: F↗↘ | F140: =3/6*E139+2/6*D139+1/6*C139 -> 2.45e-06 | G140: 2.45e-06 | H140: 2.47e-06 | I140: 2.483333333e-06 | J140: 2.49e-06 | K140: 2.545e-06 | L140: 2.581666667e-06 | M140: 2.6e-06 | N140: 2.6e-06 | O140: 2.6e-06 | P140: 2.57e-06 | Q140: 2.55e-06 | R140: 2.53e-06 | S140: 2.523333333e-06 | T140: 2.52e-06 | U140: 2.555e-06 | V140: 2.578333333e-06 | W140: 2.56e-06 | X140: 19 | Y140: 16 | AN140: YAC/BTC 0.00000932
X141: =IF(X140>$X$3,0,X140) -> 19 | Y141: =IF(Y140>$X$3,0,Y140) -> 16 | AN141: YBC/BTC 0.00245677
B142: Price Yt | C142: 2.55e-06 | D142: 2.55e-06 | E142: 2.55e-06 | F142: 2.605e-06 | G142: 2.665e-06 | H142: 2.565e-06 | I142: 2.54e-06 | J142: 2.541666667e-06 | K142: 2.53e-06 | L142: 2.53e-06 | M142: 2.53e-06 | N142: 2.53e-06 | O142: 2.468333333e-06 | P142: 2.46e-06 | Q142: 2.451666667e-06 | R142: 2.45e-06 | S142: 2.45e-06 | T142: 2.49e-06 | U142: 2.6e-06 | V142: 2.52e-06 | AN142: ZCC/BTC 0.00006799
A143: =A144/10 -> 0.2 | B143: F↗↘ | C143: =ABS(C142) -> 2.55e-06 | D143: =ABS(C142) -> 2.55e-06 | E143: =D143+а6*(D142-D143) -> 2.55e-06 | F143: =E143+а6*(E142-E143) -> 2.55e-06 | G143: 2.561e-06 | H143: 2.5818e-06 | I143: 2.57844e-06 | J143: 2.570752e-06 | K143: 2.564934933e-06 | L143: 2.557947947e-06 | M143: 2.552358357e-06 | N143: 2.547886686e-06 | O143: 2.544309349e-06 | P143: 2.529114146e-06 | Q143: 2.515291316e-06 | R143: 2.502566387e-06 | S143: 2.492053109e-06 | T143: 2.483642487e-06 | U143: 2.48491399e-06 | V143: 2.507931192e-06 | W143: =V143+а6*(V142-V143) -> 2.510344954e-06 | X143: =IF(B141=0,0,AA142*365/$Z$13) -> 0 | AN143: ZED/BTC 0.00000551
A144: 1900-01-02 | AN144: ZET/BTC 0.00003300
A145: 2 | B145: Price Yt | C145: 2.549295869e-06 | D145: 2.540147862e-06 | E145: 2.488361007e-06 | F145: 2.472168811e-06 | G145: 2.476357134e-06 | H145: 2.482085707e-06 | I145: 2.486281414e-06 | J145: 2.492025131e-06 | K145: 2.492025131e-06 | L145: 2.464083541e-06 | M145: 2.453266833e-06 | N145: 2.452997773e-06 | O145: 2.509057733e-06 | P145: 2.503534416e-06 | Q145: 2.498732258e-06 | R145: 2.479908427e-06 | S145: 2.48984988e-06 | T145: 2.501975981e-06 | U145: 2.536424e-06 | V145: 2.5621392e-06 | X145: =IF(B144=0,0,AA149*365/$Z$13) -> 0
A146: =A147/10 -> 0.2 | B146: F↗↘ | C146: =ABS(C145) -> 2.549295869e-06 | D146: =ABS(C145) -> 2.549295869e-06 | E146: =D146+а63*(D145-D146) -> 2.547466268e-06 | F146: 2.535645216e-06 | G146: 2.522949935e-06 | H146: 2.513631375e-06 | I146: 2.507322241e-06 | J146: 2.503114076e-06 | K146: 2.500896287e-06 | L146: 2.499122056e-06 | M146: 2.492114353e-06 | N146: 2.484344849e-06 | O146: 2.478075434e-06 | P146: 2.484271893e-06 | Q146: 2.488124398e-06 | R146: 2.49024597e-06 | S146: 2.488178461e-06 | T146: 2.488512745e-06 | U146: 2.491205392e-06 | V146: 2.500249114e-06 | W146: =V146+а63*(V145-V146) -> 2.512627131e-06
A147: 1900-01-02 | B147: α
A148: 2 | B148: A | I148: B | Q148: C | W148: Go to: | X148: ↙ Refresh | AN148: LTC Markets
A149: α# | X149: Go to:
B151: FST
AN152: ADT/LTC 0.00000013
W153: FST | AN153: ANC/LTC 0.06194166
AN154: ASC/LTC 0.00000869
AN155: AUR/LTC 0.03758613
AN156: BAT/LTC 0.00000011
A157: FastCoin | AN157: BC/LTC 0.00864361
AN158: CGB/LTC 0.02552304
AN159: CNC/LTC 0.00012000
AN160: COL/LTC 0.00000003
AN161: CPR/LTC 0.58569306
AN162: CTM/LTC 0.00000005
AN163: DBL/LTC 0.00034981
Z164: To source | AA164: DarkCoin | AN164: DGC/LTC 0.00231766
A165: DRK/BTC | C165: =IF(A4="FALCE","❶","") ->  | D165: =IF(A31="FALCE","❷","") ->  | E165: =IF(A58="FALCE","❸","") ->  | F165: =IF(A85="FALCE","❹","") ->  | G165: =IF(A112="FALCE","❺","") ->  | H165: =IF(A139="FALCE","❻","") ->  | I165: =IF(A139="FALCE","❻","") ->  | J165: =IF(A193="FALCE","❽","") ->  | K165: =IF(A220="FALCE","❾","") ->  | L165: =IF(A247="FALCE","❿","") ->  | M165: =IF(A247="FALCE","❿","") ->  | T165: =IF(A166="FALSE","THERE IS CHANGE IN THE IMPORT DATA. ADJUST THE INPUT !","") ->  | U165: DRK/BTC 0.01408397 | V165: DRK/BTC | W165: 0.01408397 | AN165: DIME/LTC 0.00000006
A166: =IF(V165=A165,"TRUE","FALSE") -> TRUE | B166: Price Yt | C166: 0.0139 | D166: 0.0139 | E166: 0.014 | F166: 0.014 | G166: 0.01359772 | H166: 0.01359772 | I166: 0.01359772 | J166: 0.01350502 | K166: 0.01350502 | L166: 0.01373181 | M166: 0.01373181 | N166: 0.01373181 | O166: 0.01388988 | P166: 0.01388988 | Q166: 0.01385 | R166: 0.01385 | S166: 0.01385 | T166: 0.01397892 | U166: 0.01397892 | V166: 0.01408397 | X166: =$X$3 -> 20 | Y166: ↙ Number of periods for A and B cycles | AN166: DMC/LTC 0.00000004
A167: ❼ | B167: F↗↘ | F167: =3/6*E166+2/6*D166+1/6*C166 -> 0.01395 | G167: =3/6*F166+2/6*E166+1/6*D166 -> 0.01398333333 | H167: 0.01379886 | I167: =3/6*H166+2/6*G166+1/6*F166 -> 0.01366476667 | J167: 0.01359772 | K167: =3/6*J166+2/6*I166+1/6*H166 -> 0.01355137 | L167: 0.01352047 | M167: 0.013618415 | N167: 0.01369401167 | O167: =3/6*N166+2/6*M166+1/6*L166 -> 0.01373181 | P167: 0.013810845 | Q167: 0.013863535 | R167: 0.01386994 | S167: 0.01385664667 | T167: 0.01385 | U167: 0.01391446 | V167: 0.01395743333 | W167: =3/6*V166+2/6*U166+1/6*T166 -> 0.014031445 | X167: 19 | Y167: 16 | AN167: DOGE/LTC 0.00004288
X168: =IF(X167>$X$3,0,X167) -> 19 | Y168: =IF(Y167>$X$3,0,Y167) -> 16 | AN168: DVC/LTC 0.00000679
B169: Price Yt | C169: 0.0097001 | D169: 0.0097001 | E169: 0.009780015 | F169: 0.010489735 | G169: 0.01598019 | H169: 0.014555 | I169: 0.01231666333 | J169: 0.01364501333 | K169: 0.013975 | L169: 0.01425491333 | M169: 0.0154 | N169: 0.01474995 | O169: 0.01386322833 | P169: 0.01321 | Q169: 0.01295245833 | R169: 0.01315666167 | S169: 0.01375000167 | T169: 0.01359772 | U169: 0.01373181 | V169: 0.01385 | AN169: ELP/LTC 0.00001594
A170: =A171/10 -> 0.2 | B170: F↗↘ | C170: =ABS(C169) -> 0.0097001 | D170: =ABS(C169) -> 0.0097001 | E170: =D170+а7*(D169-D170) -> 0.0097001 | F170: 0.009716083 | G170: 0.0098708134 | H170: 0.01109268872 | I170: 0.01178515098 | J170: 0.01189145345 | K170: 0.01224216542 | L170: 0.01258873234 | M170: 0.01292196854 | N170: 0.01341757483 | O170: 0.01368404986 | P170: 0.01371988556 | Q170: 0.01361790845 | R170: 0.01348481842 | S170: 0.01341918707 | T170: 0.01348534999 | U170: 0.01350782399 | V170: 0.01355262119 | W170: =V170+а7*(V169-V170) -> 0.01361209696 | X170: =IF(B168=0,0,AA169*365/$Z$13) -> 0 | AN170: EZC/LTC 0.00009240
A171: 1900-01-02 | B171: α | AN171: FLO/LTC 0.00005278
A172: 2 | B172: Price Yt | C172: 0.005821881307 | D172: 0.005608591063 | E172: 0.0055983107 | F172: 0.005622746158 | G172: 0.005648162986 | H172: 0.005667668471 | I172: 0.006000567066 | J172: 0.006000567066 | K172: 0.006040402922 | L172: 0.006062404611 | M172: 0.006118564095 | N172: 0.006382089361 | O172: 0.006370318733 | P172: 0.006449982254 | Q172: 0.007083381958 | R172: 0.007373953862 | S172: 0.007918812507 | T172: 0.008272725021 | U172: 0.009140798885 | V172: 0.01050867711 | X172: =IF(B171=0,0,AA176*365/$Z$13) -> 0 | AN172: FRK/LTC 0.01849512
A173: =A174/10 -> 0.2 | B173: F↗↘ | C173: =ABS(C172) -> 0.005821881307 | D173: =ABS(C172) -> 0.005821881307 | E173: =D173+а73*(D172-D173) -> 0.005779223258 | F173: 0.005743040747 | G173: 0.005718981829 | H173: 0.00570481806 | I173: 0.005697388143 | J173: 0.005758023927 | K173: 0.005806532555 | L173: 0.005853306628 | M173: 0.005895126225 | N173: 0.005939813799 | O173: 0.006028268911 | P173: 0.006096678876 | Q173: 0.006167339551 | R173: 0.006350548033 | S173: 0.006555229198 | T173: 0.00682794586 | U173: 0.007116901692 | V173: 0.007521681131 | W173: =V173+а73*(V172-V173) -> 0.008119080326 | AN173: FST/LTC 0.00010636
A174: 1900-01-02 | B174: α | AN174: GLD/LTC 0.00082353
B175: A | I175: B | Q175: C | X175: ↙ Refresh | Z175: 0 | AN175: GME/LTC 0.00000300
A176: α# | X176: Go to: | AN176: IFC/LTC 0.00000172
AN177: JKC/LTC 0.00021509
B178: DRK | AN178: KARM/LTC 0.00000036
W179: Go to: | AN179: MEC/LTC 0.00858256
AN180: MEM/LTC 0.00001861
Z181: 0 | AN181: MOON/LTC 0.00000006
W182: DRK | AN182: MST/LTC 0.00002492
A183: DarkCoin | AN183: NET/LTC 0.00010726
A184: 1900-01-01 | AN184: NXT/LTC 0.00339983
AN185: PPC/LTC 0.20147630
AN186: PXC/LTC 0.00011542
AN187: QRK/LTC 0.00158943
AN188: RBBT/LTC 0.00000005
AN189: RED/LTC 0.00027000
AN190: RYC/LTC 0.00008825
Z191: To source | AA191: CatCoin | AN191: SBC/LTC 0.00033212
A192: CAT/BTC | C192: =IF(A4="FALCE","❶","") ->  | D192: =IF(A31="FALCE","❷","") ->  | E192: =IF(A58="FALCE","❸","") ->  | F192: =IF(A85="FALCE","❹","") ->  | G192: =IF(A112="FALCE","❺","") ->  | H192: =IF(A139="FALCE","❻","") ->  | I192: =IF(A166="FALCE","❼","") ->  | J192: =IF(A166="FALCE","❼","") ->  | K192: =IF(A220="FALCE","❾","") ->  | L192: =IF(A247="FALCE","❿","") ->  | M192: =IF(A247="FALCE","❿","") ->  | T192: =IF(A193="FALSE","THERE IS CHANGE IN THE IMPORT DATA. ADJUST THE INPUT !","") ->  | U192: CAT/BTC 0.00004820 | V192: CAT/BTC | W192: 4.82e-05 | AN192: SXC/LTC 0.00016626
A193: =IF(V192=A192,"TRUE","FALSE") -> TRUE | B193: Price Yt | C193: 4.853e-05 | D193: 4.853e-05 | E193: 4.853e-05 | F193: 4.853e-05 | G193: 4.853e-05 | H193: 4.853e-05 | I193: 4.853e-05 | J193: 4.853e-05 | K193: 4.853e-05 | L193: 4.844e-05 | M193: 4.844e-05 | N193: 4.844e-05 | O193: 4.85e-05 | P193: 4.85e-05 | Q193: 4.85e-05 | R193: 4.85e-05 | S193: 4.85e-05 | T193: 4.85e-05 | U193: 4.85e-05 | V193: 4.82e-05 | X193: =$X$3 -> 20 | Y193: ↙ Number of periods for A and B cycles | AN193: TIPS/LTC 0.00000004
A194: ❽ | B194: F↗↘ | F194: =3/6*E193+2/6*D193+1/6*C193 -> 4.853e-05 | G194: 4.853e-05 | H194: 4.853e-05 | I194: 4.853e-05 | J194: 4.853e-05 | K194: 4.853e-05 | L194: 4.853e-05 | M194: 4.8485e-05 | N194: 4.8455e-05 | O194: 4.844e-05 | P194: 4.847e-05 | Q194: 4.849e-05 | R194: 4.85e-05 | S194: 4.85e-05 | T194: 4.85e-05 | U194: 4.85e-05 | V194: 4.85e-05 | W194: 4.835e-05 | X194: 19 | Y194: 16 | AN194: TIX/LTC 0.00000054
X195: =IF(X194>$X$3,0,X194) -> 19 | Y195: =IF(Y194>$X$3,0,Y194) -> 16 | AN195: WDC/LTC 0.00259404
B196: Price Yt | C196: 5.086e-05 | D196: 5.086e-05 | E196: 4.982e-05 | F196: 4.982e-05 | G196: 4.89e-05 | H196: 4.886e-05 | I196: 4.886e-05 | J196: 4.886e-05 | K196: 4.886e-05 | L196: 4.886e-05 | M196: 4.886e-05 | N196: 4.87e-05 | O196: 4.868e-05 | P196: 4.863e-05 | Q196: 4.863e-05 | R196: 4.863e-05 | S196: 4.854666667e-05 | T196: 4.853e-05 | U196: 4.844e-05 | V196: 4.85e-05 | AN196: XNC/LTC 0.00000401
A197: =A198/10 -> 0.2 | B197: F↗↘ | C197: =ABS(C196) -> 5.086e-05 | D197: =ABS(C196) -> 5.086e-05 | E197: =D197+а8*(D196-D197) -> 5.086e-05 | F197: =E197+а8*(E196-E197) -> 5.0652e-05 | G197: 5.04856e-05 | H197: 5.016848e-05 | I197: 4.9906784e-05 | J197: 4.96974272e-05 | K197: 4.952994176e-05 | L197: 4.939595341e-05 | M197: 4.928876273e-05 | N197: 4.920301018e-05 | O197: 4.910240814e-05 | P197: 4.901792652e-05 | Q197: 4.894034121e-05 | R197: 4.887827297e-05 | S197: 4.882861838e-05 | T197: 4.877222803e-05 | U197: 4.872378243e-05 | V197: 4.866702594e-05 | W197: 4.863362075e-05 | X197: =IF(B195=0,0,AA196*365/$Z$13) -> 0 | AN197: XPM/LTC 0.05816124
A198: 1900-01-02 | B198: α | L198: 6.042209163e-07 | M198: 3.688800655e-07 | N198: 2.535350887e-07 | O198: 1.849719289e-07 | P198: 1.419659889e-07 | Q198: 1.139132332e-07 | R198: 9.506672106e-08 | S198: 8.220508333e-08 | T198: 7.34458632e-08 | U198: 6.763755146e-08 | AN198: YAC/LTC 0.00040000
A199: 2 | B199: Price Yt | C199: 6.876676431e-05 | D199: 6.730141145e-05 | E199: 6.1e-05 | F199: 6.1e-05 | G199: 6.1e-05 | H199: 6.1e-05 | I199: 6.425840262e-05 | J199: 6.425840262e-05 | K199: 6.308897767e-05 | L199: 6.267218214e-05 | M199: 6.233774571e-05 | N199: 6.182867637e-05 | O199: 6.182867637e-05 | P199: 6.250188266e-05 | Q199: 6.067150613e-05 | R199: 5.334078312e-05 | S199: 5.284485708e-05 | T199: 5.244221713e-05 | U199: 5.12949696e-05 | V199: 5.081597568e-05 | X199: =IF(B198=0,0,AA203*365/$Z$13) -> 0 | AN199: ZEIT/LTC 0.00000082
A200: =A201/10 -> 0.2 | B200: F↗↘ | C200: =ABS(C199) -> 6.876676431e-05 | D200: =ABS(C199) -> 6.876676431e-05 | E200: =D200+а83*(D199-D200) -> 6.847369373e-05 | F200: 6.697895499e-05 | G200: 6.578316399e-05 | H200: 6.482653119e-05 | I200: 6.406122495e-05 | J200: 6.410066049e-05 | K200: 6.413220891e-05 | L200: 6.392356266e-05 | M200: 6.367328656e-05 | N200: 6.340617839e-05 | O200: 6.309067799e-05 | P200: 6.283827766e-05 | Q200: 6.277099866e-05 | R200: 6.235110015e-05 | S200: 6.054903675e-05 | T200: 5.900820081e-05 | U200: 5.769500408e-05 | V200: 5.641499718e-05 | W200: 5.529519288e-05 | AN200: ZET/LTC 0.00141300
A201: 1900-01-02 | B201: α
A202: 2 | B202: A | I202: B | Q202: C | W202: Go to | X202: ↙ Refresh | Z202: 0
A203: α# | X203: Go to:
... 394 more rows
